[Event "Live Chess"]
[Site "Chess.com"]
[Date "2023.05.21"]
[Round "-"]
[White "SupremeTactician"]
[Black "Jo1ts"]
[Result "1-0"]
[WhiteElo "2345"]
[BlackElo "789"]
[TimeControl "300"]
[EndTime "17:02:08 PDT"]
[Termination "SupremeTactician won by resignation"]

1. e4 {[%clk 0:04:58]} 1... d5 {[%clk 0:04:58.5]} 2. exd5 {[%clk 0:04:56.7]}
2... Qxd5 {[%clk 0:04:57.9]} 3. Nc3 {[%clk 0:04:56.1]} 3... Qd8 {[%clk
0:04:56.4]} 4. d4 {[%clk 0:04:55.2]} 4... Nf6 {[%clk 0:04:54]} 5. Be3 {[%clk
0:04:54.2]} 5... Bf5 {[%clk 0:04:46.2]} 6. Bd3 {[%clk 0:04:52.8]} 6... Bg6
{[%clk 0:04:41.1]} 7. Nf3 {[%clk 0:04:50.9]} 7... e6 {[%clk 0:04:39.1]} 8. O-O
{[%clk 0:04:49.7]} 8... Bd6 {[%clk 0:04:35.8]} 9. Nb5 {[%clk 0:04:47.5]} 9...
Nc6 {[%clk 0:04:25.9]} 10. Nxd6+ {[%clk 0:04:45.2]} 10... cxd6 {[%clk
0:04:25.8]} 11. c3 {[%clk 0:04:44.2]} 11... O-O {[%clk 0:04:21.9]} 12. Bxg6
{[%clk 0:04:41.3]} 12... hxg6 {[%clk 0:04:21.1]} 13. Rc1 {[%clk 0:04:36.7]}
13... d5 {[%clk 0:04:14.9]} 14. Qd3 {[%clk 0:04:32.8]} 14... Ng4 {[%clk
0:04:07.7]} 15. h3 {[%clk 0:04:30.8]} 15... Nxe3 {[%clk 0:04:03.4]} 16. fxe3
{[%clk 0:04:30.7]} 16... Qd6 {[%clk 0:03:57.7]} 17. e4 {[%clk 0:04:28.6]} 17...
Qf4 {[%clk 0:03:47.1]} 18. exd5 {[%clk 0:04:23.6]} 18... exd5 {[%clk 0:03:45.1]}
19. Ne5 {[%clk 0:04:22.5]} 19... Qh4 {[%clk 0:03:37.9]} 20. Nxc6 {[%clk
0:03:56.8]} 20... bxc6 {[%clk 0:03:37.8]} 21. Rce1 {[%clk 0:03:55.9]} 21... Rfd8
{[%clk 0:03:32.4]} 22. Qf3 {[%clk 0:03:52.1]} 22... Rf8 {[%clk 0:03:30.2]} 23.
Re5 {[%clk 0:03:46.6]} 1-0

[Event "Live Chess"]
[Site "Chess.com"]
[Date "2023.05.21"]
[Round "-"]
[White "EdenHazard8"]
[Black "HoarseyHorsey"]
[Result "1-0"]
[WhiteElo "2000"]
[BlackElo "1430"]
[TimeControl "300"]
[EndTime "17:02:12 PDT"]
[Termination "EdenHazard8 won by resignation"]

1. e4 {[%clk 0:04:59]} 1... c5 {[%clk 0:04:58.8]} 2. Nc3 {[%clk 0:04:58]} 2...
e6 {[%clk 0:04:57.1]} 3. f4 {[%clk 0:04:57.9]} 3... g6 {[%clk 0:04:55.7]} 4. Nf3
{[%clk 0:04:57.2]} 4... Bg7 {[%clk 0:04:55.1]} 5. Bb5 {[%clk 0:04:56.7]} 5...
Nc6 {[%clk 0:04:54.1]} 6. Bxc6 {[%clk 0:04:55.6]} 6... bxc6 {[%clk 0:04:54]} 7.
d3 {[%clk 0:04:55.3]} 7... Ne7 {[%clk 0:04:53.3]} 8. O-O {[%clk 0:04:55.2]} 8...
O-O {[%clk 0:04:52.3]} 9. Qe1 {[%clk 0:04:54.5]} 9... d6 {[%clk 0:04:51.6]} 10.
Qh4 {[%clk 0:04:53.7]} 10... f6 {[%clk 0:04:44.9]} 11. f5 {[%clk 0:04:51.9]}
11... exf5 {[%clk 0:04:43.7]} 12. Bh6 {[%clk 0:04:48.5]} 12... Be6 {[%clk
0:04:27.2]} 13. Bxg7 {[%clk 0:04:35.2]} 13... Kxg7 {[%clk 0:04:27.1]} 14. Rae1
{[%clk 0:04:33]} 14... d5 {[%clk 0:04:19.1]} 15. e5 {[%clk 0:04:19.9]} 15... Rb8
{[%clk 0:04:11.1]} 16. exf6+ {[%clk 0:04:18.2]} 16... Rxf6 {[%clk 0:04:10.3]}
17. Ng5 {[%clk 0:04:17.8]} 17... Bg8 {[%clk 0:04:03.1]} 18. Re2 {[%clk
0:04:13.7]} 18... Qd6 {[%clk 0:03:59.3]} 19. Rfe1 {[%clk 0:04:09.9]} 19... Re8
{[%clk 0:03:51]} 20. d4 {[%clk 0:03:29.6]} 20... cxd4 {[%clk 0:03:33.4]} 21.
Qxd4 {[%clk 0:03:27.5]} 21... c5 {[%clk 0:03:02.5]} 22. Qe5 {[%clk 0:03:25.9]}
22... h6 {[%clk 0:02:42]} 23. Qxd6 {[%clk 0:02:49.2]} 23... Rxd6 {[%clk
0:02:40.1]} 24. Nf3 {[%clk 0:02:49.1]} 24... Kf8 {[%clk 0:02:29.6]} 25. Ne5
{[%clk 0:02:41.2]} 25... d4 {[%clk 0:02:24.7]} 26. Nb5 {[%clk 0:02:34.3]} 26...
Re6 {[%clk 0:02:23.5]} 27. Nd7+ {[%clk 0:02:32.5]} 27... Kg7 {[%clk 0:02:21.3]}
28. Rxe6 {[%clk 0:02:31.3]} 28... Bxe6 {[%clk 0:02:21.2]} 29. Rxe6 {[%clk
0:02:30.5]} 29... Kf7 {[%clk 0:02:17.2]} 30. Re1 {[%clk 0:02:24]} 30... Rb8
{[%clk 0:02:02.8]} 31. Nd6+ {[%clk 0:02:22.4]} 31... Kg7 {[%clk 0:02:00.6]} 32.
Rxe7+ {[%clk 0:02:20.3]} 1-0

[Event "Live Chess"]
[Site "Chess.com"]
[Date "2023.05.21"]
[Round "-"]
[White "wot-not"]
[Black "WelshTiger"]
[Result "0-1"]
[WhiteElo "1546"]
[BlackElo "2359"]
[TimeControl "300"]
[EndTime "17:02:12 PDT"]
[Termination "WelshTiger won by resignation"]

1. e4 {[%clk 0:04:59.3]} 1... c6 {[%clk 0:04:56]} 2. f4 {[%clk 0:04:58.6]} 2...
d5 {[%clk 0:04:55.9]} 3. e5 {[%clk 0:04:57.6]} 3... h5 {[%clk 0:04:52.3]} 4. Nf3
{[%clk 0:04:57.4]} 4... Nh6 {[%clk 0:04:49.1]} 5. d4 {[%clk 0:04:56.8]} 5... Bg4
{[%clk 0:04:47.3]} 6. Bd3 {[%clk 0:04:55.1]} 6... e6 {[%clk 0:04:46]} 7. O-O
{[%clk 0:04:54.1]} 7... Be7 {[%clk 0:04:44.4]} 8. h3 {[%clk 0:04:51.3]} 8...
Bxf3 {[%clk 0:04:43.4]} 9. Qxf3 {[%clk 0:04:50.4]} 9... h4 {[%clk 0:04:40.7]}
10. f5 {[%clk 0:04:34.8]} 10... exf5 {[%clk 0:04:39.8]} 11. Bxf5 {[%clk
0:04:32.9]} 11... Nxf5 {[%clk 0:04:34.7]} 12. Qxf5 {[%clk 0:04:32]} 12... O-O
{[%clk 0:04:33.8]} 13. Nd2 {[%clk 0:04:25.3]} 13... c5 {[%clk 0:04:25.4]} 14. c3
{[%clk 0:04:24.1]} 14... Nc6 {[%clk 0:04:24.2]} 15. Nf3 {[%clk 0:04:22.5]} 15...
cxd4 {[%clk 0:04:23.3]} 16. cxd4 {[%clk 0:04:21.9]} 16... Qb6 {[%clk 0:04:21.5]}
17. Bg5 {[%clk 0:04:12.9]} 17... Nxd4 {[%clk 0:04:18.7]} 18. Nxd4 {[%clk
0:04:08.5]} 18... Qxd4+ {[%clk 0:04:17.6]} 19. Kh1 {[%clk 0:04:08.1]} 19... Bxg5
{[%clk 0:04:13.1]} 20. Qxg5 {[%clk 0:04:07.2]} 20... Rae8 {[%clk 0:04:09.2]} 21.
Rf4 {[%clk 0:04:02.9]} 21... Qxe5 {[%clk 0:04:06.9]} 22. Qxe5 {[%clk 0:04:01.1]}
22... Rxe5 {[%clk 0:04:05.4]} 23. Rxh4 {[%clk 0:04:00.9]} 23... Rc8 {[%clk
0:03:59.3]} 24. Rb4 {[%clk 0:03:57.7]} 24... b6 {[%clk 0:03:58.2]} 25. Rd1
{[%clk 0:03:50.7]} 25... Rc2 {[%clk 0:03:55.8]} 26. Rbd4 {[%clk 0:03:44.2]}
26... Rxb2 {[%clk 0:03:54.5]} 27. Rxd5 {[%clk 0:03:42.4]} 27... Rxd5 {[%clk
0:03:53.1]} 28. Rxd5 {[%clk 0:03:41.9]} 28... Rxa2 {[%clk 0:03:52.8]} 29. Rd8+
{[%clk 0:03:40.6]} 29... Kh7 {[%clk 0:03:51.6]} 30. Rd7 {[%clk 0:03:38.7]} 30...
Kg6 {[%clk 0:03:51.1]} 31. Kh2 {[%clk 0:03:36.5]} 31... b5 {[%clk 0:03:49.6]}
32. Kg3 {[%clk 0:03:36.3]} 32... b4 {[%clk 0:03:48.2]} 33. Kg4 {[%clk 0:03:35]}
33... b3 {[%clk 0:03:46.4]} 34. Rd6+ {[%clk 0:03:34.5]} 34... f6 {[%clk
0:03:45.1]} 35. h4 {[%clk 0:03:30.1]} 35... Rxg2+ {[%clk 0:03:43]} 36. Kf4
{[%clk 0:03:28.6]} 36... Rc2 {[%clk 0:03:39.7]} 0-1

[Event "Live Chess"]
[Site "Chess.com"]
[Date "2023.05.21"]
[Round "-"]
[White "Ed_Knox"]
[Black "laminaaprod"]
[Result "0-1"]
[WhiteElo "1469"]
[BlackElo "2227"]
[TimeControl "300"]
[EndTime "17:02:16 PDT"]
[Termination "laminaaprod won by checkmate"]

1. d4 {[%clk 0:04:43.7]} 1... c5 {[%clk 0:04:50.3]} 2. d5 {[%clk 0:04:40.6]}
2... d6 {[%clk 0:04:48.5]} 3. e4 {[%clk 0:04:37.9]} 3... e6 {[%clk 0:04:47.7]}
4. Nc3 {[%clk 0:04:32.9]} 4... exd5 {[%clk 0:04:46.9]} 5. Nxd5 {[%clk
0:04:31.2]} 5... Nf6 {[%clk 0:04:43.3]} 6. Bb5+ {[%clk 0:04:20.2]} 6... Bd7
{[%clk 0:04:42]} 7. Bxd7+ {[%clk 0:04:05.5]} 7... Nbxd7 {[%clk 0:04:39.8]} 8.
Bg5 {[%clk 0:04:03.1]} 8... Be7 {[%clk 0:04:33.2]} 9. Nxe7 {[%clk 0:03:49.3]}
9... Qxe7 {[%clk 0:04:29.6]} 10. f3 {[%clk 0:03:31.7]} 10... d5 {[%clk
0:04:21.4]} 11. Bxf6 {[%clk 0:03:17.6]} 11... Nxf6 {[%clk 0:04:20]} 12. Qe2
{[%clk 0:02:52.2]} 12... dxe4 {[%clk 0:04:17]} 13. O-O-O {[%clk 0:02:45.9]}
13... O-O {[%clk 0:04:13]} 14. fxe4 {[%clk 0:02:43.2]} 14... Qxe4 {[%clk
0:04:11.2]} 15. Qxe4 {[%clk 0:02:38.8]} 15... Nxe4 {[%clk 0:03:46]} 16. Nh3
{[%clk 0:02:30.7]} 16... Rad8 {[%clk 0:03:41.5]} 17. Rhe1 {[%clk 0:02:23.7]}
17... Rxd1+ {[%clk 0:03:27.8]} 18. Kxd1 {[%clk 0:02:22.2]} 18... Rd8+ {[%clk
0:03:27]} 19. Kc1 {[%clk 0:02:20.7]} 19... Nf6 {[%clk 0:03:24.9]} 20. Re7 {[%clk
0:02:12.7]} 20... Rd7 {[%clk 0:03:24]} 21. Re5 {[%clk 0:02:01.2]} 21... b6
{[%clk 0:03:21.7]} 22. Nf4 {[%clk 0:01:55.8]} 22... g6 {[%clk 0:03:04.4]} 23.
Nd3 {[%clk 0:01:47.7]} 23... Kg7 {[%clk 0:02:59.6]} 24. Rg5 {[%clk 0:01:44.7]}
24... h6 {[%clk 0:02:47.5]} 25. Rg3 {[%clk 0:01:38.9]} 25... Re7 {[%clk
0:02:38.5]} 26. Kd1 {[%clk 0:01:35.3]} 26... Nd5 {[%clk 0:02:28.5]} 27. c3
{[%clk 0:01:17.9]} 27... Ne3+ {[%clk 0:02:05.2]} 28. Kd2 {[%clk 0:01:16.2]}
28... Nf1+ {[%clk 0:02:04.3]} 29. Kc2 {[%clk 0:01:13.1]} 29... Nxg3 {[%clk
0:02:02.7]} 30. hxg3 {[%clk 0:01:12.4]} 30... Re2+ {[%clk 0:02:02.6]} 31. Kb3
{[%clk 0:01:11.3]} 31... Rxg2 {[%clk 0:02:02.5]} 32. Ne5 {[%clk 0:01:09.9]}
32... Rxg3 {[%clk 0:02:02.4]} 33. Nd7 {[%clk 0:01:08.3]} 33... h5 {[%clk
0:02:00.7]} 34. a4 {[%clk 0:01:04.3]} 34... h4 {[%clk 0:02:00.6]} 35. Kc4 {[%clk
0:00:55]} 35... h3 {[%clk 0:01:58.2]} 36. Ne5 {[%clk 0:00:53.8]} 36... h2 {[%clk
0:01:58.1]} 37. a5 {[%clk 0:00:49.3]} 37... h1=Q {[%clk 0:01:56.7]} 38. axb6
{[%clk 0:00:48.2]} 38... axb6 {[%clk 0:01:51.2]} 39. b4 {[%clk 0:00:45.9]} 39...
cxb4 {[%clk 0:01:45.3]} 40. cxb4 {[%clk 0:00:38.3]} 40... Qh4+ {[%clk
0:01:41.2]} 41. Kb5 {[%clk 0:00:36.7]} 41... Rg5 {[%clk 0:01:40.8]} 42. Kxb6
{[%clk 0:00:32.4]} 42... Rxe5 {[%clk 0:01:40.7]} 43. b5 {[%clk 0:00:31.3]} 43...
Rxb5+ {[%clk 0:01:40]} 44. Kc7 {[%clk 0:00:30.1]} 44... Rb7+ {[%clk 0:01:37.3]}
45. Kc6 {[%clk 0:00:28.8]} 45... Rc7+ {[%clk 0:01:36.2]} 46. Kd5 {[%clk
0:00:27.7]} 46... Rd7+ {[%clk 0:01:34.6]} 47. Ke5 {[%clk 0:00:26.2]} 47... Re7+
{[%clk 0:01:32.9]} 48. Kd5 {[%clk 0:00:25.1]} 48... Qe4+ {[%clk 0:01:32.4]} 49.
Kc5 {[%clk 0:00:24]} 49... Qf5+ {[%clk 0:01:29.2]} 50. Kb4 {[%clk 0:00:21.3]}
50... Qf6 {[%clk 0:01:26.1]} 51. Kb3 {[%clk 0:00:20.1]} 51... g5 {[%clk
0:01:26]} 52. Kc2 {[%clk 0:00:19]} 52... g4 {[%clk 0:01:25.9]} 53. Kd2 {[%clk
0:00:18.3]} 53... g3 {[%clk 0:01:25.8]} 54. Kd1 {[%clk 0:00:17.6]} 54... g2
{[%clk 0:01:25.7]} 55. Kd2 {[%clk 0:00:17]} 55... g1=Q {[%clk 0:01:25.6]} 56.
Kc2 {[%clk 0:00:14.3]} 56... Qgg5 {[%clk 0:01:25.5]} 57. Kd3 {[%clk 0:00:13.1]}
57... Qff4 {[%clk 0:01:25.4]} 58. Kc2 {[%clk 0:00:10.3]} 58... Re3 {[%clk
0:01:25.3]} 59. Kb2 {[%clk 0:00:09]} 59... Qg2+ {[%clk 0:01:25.2]} 60. Kc1
{[%clk 0:00:08.1]} 60... Qff1# {[%clk 0:01:25.1]} 0-1

[Event "Live Chess"]
[Site "Chess.com"]
[Date "2023.05.21"]
[Round "-"]
[White "mikkyb4"]
[Black "Tushinskiy"]
[Result "0-1"]
[WhiteElo "1037"]
[BlackElo "2174"]
[TimeControl "300"]
[EndTime "17:02:42 PDT"]
[Termination "Tushinskiy won by resignation"]

1. e4 {[%clk 0:04:58.9]} 1... e5 {[%clk 0:04:56.5]} 2. Nc3 {[%clk 0:04:57.2]}
2... d6 {[%clk 0:04:56.4]} 3. Bc4 {[%clk 0:04:54.5]} 3... Nf6 {[%clk 0:04:48.4]}
4. d3 {[%clk 0:04:52.6]} 4... Be7 {[%clk 0:04:47.8]} 5. f4 {[%clk 0:04:47.3]}
5... O-O {[%clk 0:04:47.7]} 6. f5 {[%clk 0:04:45]} 6... c6 {[%clk 0:04:46.3]} 7.
Nf3 {[%clk 0:04:43]} 7... b5 {[%clk 0:04:45.7]} 8. Bb3 {[%clk 0:04:41.8]} 8...
Nbd7 {[%clk 0:04:45.2]} 9. O-O {[%clk 0:04:34]} 9... a5 {[%clk 0:04:43.9]} 10.
a3 {[%clk 0:04:32.7]} 10... Nc5 {[%clk 0:04:43]} 11. Ba2 {[%clk 0:04:31.4]}
11... b4 {[%clk 0:04:42.2]} 12. Ne2 {[%clk 0:04:13.3]} 12... d5 {[%clk
0:04:40.2]} 13. Qe1 {[%clk 0:03:59.8]} 13... dxe4 {[%clk 0:04:38.8]} 14. dxe4
{[%clk 0:03:58.2]} 14... Nfxe4 {[%clk 0:04:38.1]} 15. Nxe5 {[%clk 0:03:48.6]}
15... Bf6 {[%clk 0:04:36.8]} 16. Ng4 {[%clk 0:03:37.9]} 16... bxa3 {[%clk
0:04:33.8]} 17. Rb1 {[%clk 0:03:31.9]} 17... Ba6 {[%clk 0:04:11.3]} 18. Nxf6+
{[%clk 0:03:22.4]} 18... Qxf6 {[%clk 0:04:09.2]} 19. Rf3 {[%clk 0:03:12.2]}
19... Rab8 {[%clk 0:04:00.8]} 20. c3 {[%clk 0:03:06]} 20... axb2 {[%clk
0:03:49.3]} 21. Rxb2 {[%clk 0:02:55.8]} 21... Nd3 {[%clk 0:03:47.3]} 22. Rxb8
{[%clk 0:02:45.2]} 22... Nxe1 {[%clk 0:03:45.5]} 23. Rxf8+ {[%clk 0:02:44.8]}
23... Kxf8 {[%clk 0:03:44.6]} 24. Ba3+ {[%clk 0:02:39.7]} 24... c5 {[%clk
0:03:41.7]} 25. Re3 {[%clk 0:02:32.5]} 25... Bxe2 {[%clk 0:03:33.6]} 26. Rxe4
{[%clk 0:02:18.3]} 26... Qxc3 {[%clk 0:03:31.6]} 27. Rxe2 {[%clk 0:01:59.8]}
27... Qxa3 {[%clk 0:03:29.7]} 28. Rxe1 {[%clk 0:01:55.6]} 28... Qxa2 {[%clk
0:03:28.1]} 0-1

[Event "Live Chess"]
[Site "Chess.com"]
[Date "2023.05.21"]
[Round "-"]
[White "KGreenGator"]
[Black "flyingpuffins"]
[Result "1/2-1/2"]
[WhiteElo "1775"]
[BlackElo "1962"]
[TimeControl "300"]
[EndTime "17:02:48 PDT"]
[Termination "Game drawn - timeout vs insufficient material"]

1. c4 {[%clk 0:04:58.4]} 1... c6 {[%clk 0:04:58.5]} 2. d4 {[%clk 0:04:56.1]}
2... d5 {[%clk 0:04:56.6]} 3. e3 {[%clk 0:04:53.9]} 3... Nf6 {[%clk 0:04:55.1]}
4. Nf3 {[%clk 0:04:52.2]} 4... Bf5 {[%clk 0:04:52.4]} 5. Nc3 {[%clk 0:04:51]}
5... e6 {[%clk 0:04:51.4]} 6. Be2 {[%clk 0:04:49.1]} 6... Nbd7 {[%clk
0:04:45.1]} 7. a3 {[%clk 0:04:48.3]} 7... Bd6 {[%clk 0:04:38.3]} 8. c5 {[%clk
0:04:46.4]} 8... Bc7 {[%clk 0:04:36.7]} 9. Bd2 {[%clk 0:04:43.2]} 9... b6 {[%clk
0:04:35.4]} 10. b4 {[%clk 0:04:41.3]} 10... a5 {[%clk 0:04:34.8]} 11. O-O {[%clk
0:04:37.3]} 11... O-O {[%clk 0:04:31.4]} 12. Qb3 {[%clk 0:04:34.5]} 12... Re8
{[%clk 0:04:22.4]} 13. Nh4 {[%clk 0:04:31.1]} 13... Bg4 {[%clk 0:04:17.1]} 14.
Bxg4 {[%clk 0:04:29]} 14... Nxg4 {[%clk 0:04:17]} 15. Nf3 {[%clk 0:04:27.7]}
15... e5 {[%clk 0:04:15.6]} 16. dxe5 {[%clk 0:04:25]} 16... Ngxe5 {[%clk
0:04:14.2]} 17. Nxe5 {[%clk 0:04:23.2]} 17... Nxe5 {[%clk 0:04:10.4]} 18. cxb6
{[%clk 0:04:22.1]} 18... Bxb6 {[%clk 0:04:07.3]} 19. bxa5 {[%clk 0:04:21.3]}
19... Bxa5 {[%clk 0:04:06.1]} 20. Nb1 {[%clk 0:04:16.1]} 20... Bc7 {[%clk
0:03:59.5]} 21. Bc3 {[%clk 0:04:10.3]} 21... Ng4 {[%clk 0:03:47.5]} 22. g3
{[%clk 0:04:06.9]} 22... Qg5 {[%clk 0:03:38.2]} 23. Kg2 {[%clk 0:03:59.2]} 23...
Qh5 {[%clk 0:03:33.4]} 24. Rh1 {[%clk 0:03:56.9]} 24... Rab8 {[%clk 0:03:26.4]}
25. Qc2 {[%clk 0:03:54.4]} 25... Rxe3 {[%clk 0:03:21.8]} 26. h3 {[%clk
0:03:48.6]} 26... Nxf2 {[%clk 0:02:57.8]} 27. Kxf2 {[%clk 0:03:43.8]} 27... Qf3+
{[%clk 0:02:55.3]} 28. Kg1 {[%clk 0:03:43]} 28... Qxg3+ {[%clk 0:02:38.3]} 29.
Qg2 {[%clk 0:03:41]} 29... Re1+ {[%clk 0:02:35]} 30. Bxe1 {[%clk 0:03:37.3]}
30... Qxe1+ {[%clk 0:02:28.8]} 31. Qf1 {[%clk 0:03:36.3]} 31... Qg3+ {[%clk
0:02:23.8]} 32. Qg2 {[%clk 0:03:35.2]} 32... Bb6+ {[%clk 0:02:19.5]} 33. Kf1
{[%clk 0:03:32.8]} 33... Qd3+ {[%clk 0:02:16.8]} 34. Qe2 {[%clk 0:03:28.9]}
34... Qf5+ {[%clk 0:02:10.8]} 35. Ke1 {[%clk 0:03:25.1]} 35... Kf8 {[%clk
0:01:57.5]} 36. Rf1 {[%clk 0:03:18.1]} 36... Qxh3 {[%clk 0:01:50.7]} 37. Qf3
{[%clk 0:03:16.3]} 37... Re8+ {[%clk 0:01:47.1]} 38. Kd1 {[%clk 0:03:15.4]}
38... Qe6 {[%clk 0:01:29.1]} 39. Nd2 {[%clk 0:03:09.5]} 39... f6 {[%clk
0:01:24.8]} 40. Kc2 {[%clk 0:03:01.7]} 40... c5 {[%clk 0:01:14]} 41. Rae1 {[%clk
0:02:59.6]} 41... Qf7 {[%clk 0:01:10.8]} 42. Rxe8+ {[%clk 0:02:57.5]} 42... Kxe8
{[%clk 0:01:10.7]} 43. Re1+ {[%clk 0:02:54.7]} 43... Kd7 {[%clk 0:01:09.6]} 44.
Qg4+ {[%clk 0:02:49.9]} 44... Kd6 {[%clk 0:01:05.1]} 45. Qf4+ {[%clk 0:02:47.7]}
45... Kd7 {[%clk 0:01:01.9]} 46. Qf5+ {[%clk 0:02:46.3]} 46... Kd6 {[%clk
0:00:59.9]} 47. Nf3 {[%clk 0:02:34.1]} 47... Qg6 {[%clk 0:00:51.9]} 48. Qxg6
{[%clk 0:02:32.8]} 48... hxg6 {[%clk 0:00:51.8]} 49. a4 {[%clk 0:02:27.4]} 49...
Ba5 {[%clk 0:00:49.4]} 50. Rg1 {[%clk 0:02:25.3]} 50... g5 {[%clk 0:00:48.2]}
51. Kd3 {[%clk 0:02:21.7]} 51... Ke6 {[%clk 0:00:47]} 52. Rc1 {[%clk 0:02:16]}
52... c4+ {[%clk 0:00:45.4]} 53. Kd4 {[%clk 0:02:15.2]} 53... Bb6+ {[%clk
0:00:42.8]} 54. Kc3 {[%clk 0:02:12.9]} 54... g4 {[%clk 0:00:39.1]} 55. Nd4+
{[%clk 0:02:10.5]} 55... Ke5 {[%clk 0:00:33.8]} 56. Nc6+ {[%clk 0:02:05.6]}
56... Kf4 {[%clk 0:00:29.3]} 57. a5 {[%clk 0:02:02.3]} 57... Bc5 {[%clk
0:00:22.7]} 58. a6 {[%clk 0:02:00.4]} 58... g3 {[%clk 0:00:21.8]} 59. Rc2 {[%clk
0:01:56.8]} 59... Kf3 {[%clk 0:00:18.4]} 60. Nd4+ {[%clk 0:01:51.2]} 60... Ke3
{[%clk 0:00:14.9]} 61. Nf5+ {[%clk 0:01:49.2]} 61... Kf3 {[%clk 0:00:13.3]} 62.
Nxg3 {[%clk 0:01:46]} 62... Kxg3 {[%clk 0:00:12.4]} 63. Ra2 {[%clk 0:01:43.6]}
63... f5 {[%clk 0:00:10.7]} 64. a7 {[%clk 0:01:42.4]} 64... Bxa7 {[%clk
0:00:09.9]} 65. Rxa7 {[%clk 0:01:40.6]} 65... g5 {[%clk 0:00:09]} 66. Rf7 {[%clk
0:01:35.9]} 66... f4 {[%clk 0:00:08.2]} 67. Kd4 {[%clk 0:01:34.6]} 67... g4
{[%clk 0:00:07.6]} 68. Kxd5 {[%clk 0:01:33.6]} 68... f3 {[%clk 0:00:07.1]} 69.
Ke4 {[%clk 0:01:30.9]} 69... c3 {[%clk 0:00:05.5]} 70. Ke3 {[%clk 0:01:29.1]}
70... c2 {[%clk 0:00:04.4]} 71. Kd2 {[%clk 0:01:28.1]} 71... f2 {[%clk
0:00:03.6]} 72. Kxc2 {[%clk 0:01:25.6]} 72... Kg2 {[%clk 0:00:03.1]} 73. Kd3
{[%clk 0:01:24.2]} 73... f1=Q+ {[%clk 0:00:02]} 74. Rxf1 {[%clk 0:01:21.9]}
74... Kxf1 {[%clk 0:00:01.9]} 75. Ke3 {[%clk 0:01:21.4]} 75... g3 {[%clk
0:00:01.8]} 76. Kf3 {[%clk 0:01:20.6]} 76... g2 {[%clk 0:00:01.7]} 77. Kg3
{[%clk 0:01:19.5]} 77... g1=Q+ {[%clk 0:00:01.6]} 78. Kh3 {[%clk 0:01:18]} 78...
Qf2 {[%clk 0:00:01.5]} 79. Kg4 {[%clk 0:01:16.9]} 79... Ke1 {[%clk 0:00:01.4]}
80. Kg5 {[%clk 0:01:15.6]} 80... Ke2 {[%clk 0:00:01.3]} 81. Kg6 {[%clk 0:01:15]}
81... Qe3 {[%clk 0:00:01.2]} 82. Kg7 {[%clk 0:01:14.2]} 82... Qe4 {[%clk
0:00:01.1]} 83. Kf6 {[%clk 0:01:12.9]} 83... Kd3 {[%clk 0:00:01]} 84. Kf7 {[%clk
0:01:11.8]} 84... Kd4 {[%clk 0:00:00.9]} 85. Kf6 {[%clk 0:01:10.9]} 85... Kd5
{[%clk 0:00:00.8]} 86. Kf7 {[%clk 0:01:10.2]} 86... Qe5 {[%clk 0:00:00.7]} 87.
Kg6 {[%clk 0:01:09.3]} 87... Qd6+ {[%clk 0:00:00.6]} 88. Kf7 {[%clk 0:01:08.4]}
88... Kc5 {[%clk 0:00:00.5]} 89. Ke8 {[%clk 0:01:06.8]} 89... Kc6 {[%clk
0:00:00.3]} 90. Kf7 {[%clk 0:01:06.2]} 1/2-1/2

[Event "Live Chess"]
[Site "Chess.com"]
[Date "2023.05.21"]
[Round "-"]
[White "Baturin_Yevgeniy"]
[Black "gmnorfolk"]
[Result "1-0"]
[WhiteElo "1812"]
[BlackElo "2112"]
[TimeControl "300"]
[EndTime "17:02:48 PDT"]
[Termination "Baturin_Yevgeniy won by resignation"]

1. d4 {[%clk 0:04:55.2]} 1... Nf6 {[%clk 0:04:58.3]} 2. c3 {[%clk 0:04:53.9]}
2... d6 {[%clk 0:04:53.7]} 3. Qb3 {[%clk 0:04:51.3]} 3... e5 {[%clk 0:04:53.6]}
4. e3 {[%clk 0:04:24.5]} 4... Be7 {[%clk 0:04:50.3]} 5. Nd2 {[%clk 0:04:13.5]}
5... O-O {[%clk 0:04:48]} 6. Bd3 {[%clk 0:03:52.8]} 6... Nc6 {[%clk 0:04:45.7]}
7. Ne2 {[%clk 0:03:40]} 7... Be6 {[%clk 0:04:44.3]} 8. Qxb7 {[%clk 0:02:56.7]}
8... Bd5 {[%clk 0:04:27.9]} 9. e4 {[%clk 0:02:42.5]} 9... Rb8 {[%clk 0:03:55.7]}
10. Qa6 {[%clk 0:02:37.8]} 10... Rb6 {[%clk 0:03:45.9]} 11. Qa4 {[%clk
0:02:31.4]} 11... Be6 {[%clk 0:03:31.3]} 12. d5 {[%clk 0:02:27.3]} 12... Nxd5
{[%clk 0:03:29.6]} 13. exd5 {[%clk 0:02:25]} 13... Bxd5 {[%clk 0:03:29.5]} 14.
O-O {[%clk 0:02:08.5]} 14... f5 {[%clk 0:03:25.8]} 15. Bc4 {[%clk 0:02:00]}
15... Bf7 {[%clk 0:03:23.7]} 16. Bxf7+ {[%clk 0:01:54.5]} 16... Rxf7 {[%clk
0:03:22.9]} 17. Nc4 {[%clk 0:01:46.7]} 1-0

[Event "Live Chess"]
[Site "Chess.com"]
[Date "2023.05.21"]
[Round "-"]
[White "manthanit"]
[Black "LanceMaster23"]
[Result "0-1"]
[WhiteElo "1044"]
[BlackElo "1873"]
[TimeControl "300"]
[EndTime "17:03:17 PDT"]
[Termination "LanceMaster23 won by resignation"]

1. e4 {[%clk 0:04:57.4]} 1... c5 {[%clk 0:04:58.9]} 2. Nf3 {[%clk 0:04:56]} 2...
Nc6 {[%clk 0:04:58.4]} 3. Bc4 {[%clk 0:04:54.6]} 3... e6 {[%clk 0:04:57.6]} 4.
d3 {[%clk 0:04:53.5]} 4... d5 {[%clk 0:04:56.8]} 5. exd5 {[%clk 0:04:52.8]} 5...
exd5 {[%clk 0:04:56.7]} 6. Bb3 {[%clk 0:04:51.2]} 6... Nf6 {[%clk 0:04:56]} 7.
a4 {[%clk 0:04:49.5]} 7... Be7 {[%clk 0:04:54.6]} 8. O-O {[%clk 0:04:47.8]} 8...
Bg4 {[%clk 0:04:52.7]} 9. h3 {[%clk 0:04:46.4]} 9... Bh5 {[%clk 0:04:52.1]} 10.
Bg5 {[%clk 0:04:44.5]} 10... O-O {[%clk 0:04:47.6]} 11. Re1 {[%clk 0:04:43.4]}
11... Re8 {[%clk 0:04:45.5]} 12. Nbd2 {[%clk 0:04:41.8]} 12... Nd4 {[%clk
0:04:43.6]} 13. a5 {[%clk 0:04:22.9]} 13... Nxb3 {[%clk 0:04:39.8]} 14. cxb3
{[%clk 0:04:20.4]} 14... d4 {[%clk 0:04:23]} 15. Nc4 {[%clk 0:03:57.8]} 15...
Nd5 {[%clk 0:03:51.4]} 16. Bxe7 {[%clk 0:03:53.8]} 16... Rxe7 {[%clk 0:03:51.3]}
17. g4 {[%clk 0:03:11.6]} 17... Bg6 {[%clk 0:03:42.9]} 18. Kg2 {[%clk
0:03:10.1]} 18... Nf4+ {[%clk 0:03:38.2]} 19. Kh2 {[%clk 0:02:56.4]} 19... Rxe1
{[%clk 0:03:28.9]} 20. Qxe1 {[%clk 0:02:42.7]} 20... Nxd3 {[%clk 0:03:27.2]} 21.
Qd2 {[%clk 0:02:06.9]} 21... Qc7+ {[%clk 0:03:21.6]} 22. Kg1 {[%clk 0:02:02.4]}
22... Re8 {[%clk 0:03:16.1]} 23. Kg2 {[%clk 0:00:55.8]} 23... Be4 {[%clk
0:02:56.9]} 24. Na3 {[%clk 0:00:26.5]} 24... Qc6 {[%clk 0:02:53.5]} 0-1